{"text_format":"3","workbook":"xlsx","n_sheets":2,"sheets":["كيفية استخدام هذا المصنف","دفتر الدرجات"],"not_rendered":{"defined_names":7},"read":"whole","date_system":"1900"}

{"sheet":"كيفية استخدام هذا المصنف","index":0,"n_rows":10,"n_cols":2,"rows_kept":10}
[null,"الإرشادات"]
[null,"استخدم ورقة عمل \"دفتر الدرجات\" لحساب الدرجات حيث يستحق كل واجب عددًا محددًا من النقاط. "]
[null,"الإرشادات: تأكد من حفظ نُسخ احتياطية من درجاتك."]
[null,"1. املأ اسم المدرسة ومعلومات الصف الدراسي وأسماء الطلاب وبطاقات هوية الطلاب لديك (اختياري).   "]
[null,"2. اضبط جدول الدرجات والمعدل التراكمي لمطابقة نظام تسجيل الدرجات النموذجي الذي تستخدمه."]
[null,"3. املأ أسماء الواجبات أو الاختبارات أو الامتحانات (على سبيل المثال، «الامتحان 1») التي تبدأ من الخلية H8، إلى جانب النقاط التي يستحقها كل واجب. "]
[null,"4. املأ الدرجات لكل طالب في كل واجب أو اختبار. يتم حساب أعمدة \"المتوسط\" و\"الدرجة\" \"والدرجة بالاحرف\" \"والمعدل التراكمي\" تلقائيًا، لكن يمكنك تجاوزها إذا رغبت. للحصول على نقاط رصيد إضافية، ما عليك سوى منح المزيد من النقاط في الواجب أكثر من إجمالي النقاط المحتملة المذكورة لهذا الواجب."]
[null,"استخدم أمر \"منطقة الطباعة\" في قائمة تخطيط الصفحة إذا كنت تريد تغيير ما يتم طباعته."]
[null,"تعتمد الدرجات للصفوف على مقياس النسبة المئوية القياسي وفقًا للعدد الإجمالي للنقاط المعينة في الصفوف 8 و9. اضبط كل واجب أو اختبار إلى النقاط المطلوبة، ثم اضبط النسبة المئوية مع الدرجة المناسبة. اكتب فوق خلايا الدرجات لإجراء التغييرات يدويًا."]
[null,"أدخل كل واجب أو اختبار أو امتحان والنقاط التي تستحقها في الخلايا من H8 إلى X9."]

{"sheet":"دفتر الدرجات","index":1,"n_rows":24,"n_cols":24,"rows_kept":24,"merged":[[1,1,2,6],[3,1,3,6],[4,1,6,6],[7,4,7,6],[8,4,8,6],[10,4,10,6],[11,4,11,6],[19,1,19,6],[20,1,20,2],[20,3,20,4],[21,1,21,2],[21,3,21,4],[22,1,22,2],[22,3,22,4],[23,1,23,2],[23,3,23,4]]}
[null,"اسم مدرستك"]
[null,"اسم المعلم"]
[{"$nulls":7},"الدرجة",{"$f":"I4*TotalPoints","v":118},120,126,134,140,{"v":145.6666666666666,"d":"146"},154,160,166,174,180,186,194]
[null,"الصف الدراسي/المشروع",{"$nulls":5},"%",{"v":0.59,"d":"59%"},{"v":0.6,"d":"60%"},{"v":0.63,"d":"63%"},{"v":0.67,"d":"67%"},{"v":0.7,"d":"70%"},{"v":0.728333333333333,"d":"73%"},{"v":0.77,"d":"77%"},{"v":0.8,"d":"80%"},{"v":0.83,"d":"83%"},{"v":0.87,"d":"87%"},{"v":0.9,"d":"90%"},{"v":0.93,"d":"93%"},{"v":0.97,"d":"97%"}]
[null,"السنة/الفصل الدراسي/الربع",{"$nulls":5},"الدرجة بالأحرف","و","D-","د","D+","C-","ج","C+","B-","ب","B+","A-","أ","A+"]
[{"$nulls":7},"المعدل التراكمي",0,0.67,1,1.33,1.67,2,2.33,2.67,3,3.33,3.67,4,4]
[]
[{"$nulls":4},"اسم الواجب أو الاختبار",null,null,"الواجب 1","الواجب 2","الربع الأول"]
[{"$nulls":4},"إجمالي النقاط المتوفرة",null,null,50,50,100]
[]
[{"$nulls":4},"العدد الإجمالي للواجبات والاختبارات:",null,null,{"$f":"COUNTA(H8:X8)","v":3}]
[{"$nulls":4},"إجمالي النقاط المحتملة:",null,null,{"$f":"SUM(H9:X9)","v":200}]
[]
[null,"اسم الطالب","معرّف الطالب","المتوسط","الدرجة","الدرجة بالأحرف","المعدل التراكمي","العمود 6","العمود 7","العمود 8","العمود 9","العمود 10","العمود 11","العمود 12","العمود 13","العمود 14","العمود 15","العمود 16","العمود 17","العمود 18","العمود 19","العمود 20","العمود 21","العمود 22"]
[null,"الطالب رقم 1",null,{"$f":"IFERROR(IF(COUNT(الدرجات[[#This Row],[العمود 6]:[العمود 22]])=0,\"\",SUM(الدرجات[[#This Row],[العمود 6]:[العمود 22]])/TotalPoints),\"\")","v":{"v":0.91,"d":"91.0%"}},{"$f":"IF(COUNT(الدرجات[[#This Row],[العمود 6]:[العمود 22]])=0,\"\",SUM(الدرجات[[#This Row],[العمود 6]:[العمود 22]]))","v":182},{"$f":"IFERROR(IF(الدرجات[[#This Row],[المتوسط]]<>\"\",HLOOKUP(الدرجات[[#This Row],[المتوسط]]*TotalPoints,GradeTable,3),\"\"),0)","v":"A-"},{"$f":"IFERROR(IF(الدرجات[[#This Row],[المتوسط]]<>\"\",HLOOKUP(الدرجات[[#This Row],[المتوسط]]*TotalPoints,GradeTable,4),\"\"),0)","v":3.67},45,45,92]
[null,"الطالب رقم dos",null,{"$f":"IFERROR(IF(COUNT(الدرجات[[#This Row],[العمود 6]:[العمود 22]])=0,\"\",SUM(الدرجات[[#This Row],[العمود 6]:[العمود 22]])/TotalPoints),\"\")","v":{"v":1,"d":"100.0%"}},{"$f":"IF(COUNT(الدرجات[[#This Row],[العمود 6]:[العمود 22]])=0,\"\",SUM(الدرجات[[#This Row],[العمود 6]:[العمود 22]]))","v":200},{"$f":"IFERROR(IF(الدرجات[[#This Row],[المتوسط]]<>\"\",HLOOKUP(الدرجات[[#This Row],[المتوسط]]*TotalPoints,GradeTable,3),\"\"),0)","v":"A+"},{"$f":"IFERROR(IF(الدرجات[[#This Row],[المتوسط]]<>\"\",HLOOKUP(الدرجات[[#This Row],[المتوسط]]*TotalPoints,GradeTable,4),\"\"),0)","v":{"v":4,"d":"4.00"}},50,50,100]
[{"$nulls":3},{"$f":"IFERROR(IF(COUNT(الدرجات[[#This Row],[العمود 6]:[العمود 22]])=0,\"\",SUM(الدرجات[[#This Row],[العمود 6]:[العمود 22]])/TotalPoints),\"\")","v":""},{"$f":"IF(COUNT(الدرجات[[#This Row],[العمود 6]:[العمود 22]])=0,\"\",SUM(الدرجات[[#This Row],[العمود 6]:[العمود 22]]))","v":""},{"$f":"IFERROR(IF(الدرجات[[#This Row],[المتوسط]]<>\"\",HLOOKUP(الدرجات[[#This Row],[المتوسط]]*TotalPoints,GradeTable,3),\"\"),0)","v":""},{"$f":"IFERROR(IF(الدرجات[[#This Row],[المتوسط]]<>\"\",HLOOKUP(الدرجات[[#This Row],[المتوسط]]*TotalPoints,GradeTable,4),\"\"),0)","v":""}]
[{"$nulls":3},{"$f":"IFERROR(IF(COUNT(الدرجات[[#This Row],[العمود 6]:[العمود 22]])=0,\"\",SUM(الدرجات[[#This Row],[العمود 6]:[العمود 22]])/TotalPoints),\"\")","v":""},{"$f":"IF(COUNT(الدرجات[[#This Row],[العمود 6]:[العمود 22]])=0,\"\",SUM(الدرجات[[#This Row],[العمود 6]:[العمود 22]]))","v":""},{"$f":"IFERROR(IF(الدرجات[[#This Row],[المتوسط]]<>\"\",HLOOKUP(الدرجات[[#This Row],[المتوسط]]*TotalPoints,GradeTable,3),\"\"),0)","v":""},{"$f":"IFERROR(IF(الدرجات[[#This Row],[المتوسط]]<>\"\",HLOOKUP(الدرجات[[#This Row],[المتوسط]]*TotalPoints,GradeTable,4),\"\"),0)","v":""}]
[{"$nulls":3},{"$f":"IFERROR(IF(COUNT(الدرجات[[#This Row],[العمود 6]:[العمود 22]])=0,\"\",SUM(الدرجات[[#This Row],[العمود 6]:[العمود 22]])/TotalPoints),\"\")","v":""},{"$f":"IF(COUNT(الدرجات[[#This Row],[العمود 6]:[العمود 22]])=0,\"\",SUM(الدرجات[[#This Row],[العمود 6]:[العمود 22]]))","v":""},{"$f":"IFERROR(IF(الدرجات[[#This Row],[المتوسط]]<>\"\",HLOOKUP(الدرجات[[#This Row],[المتوسط]]*TotalPoints,GradeTable,3),\"\"),0)","v":""},{"$f":"IFERROR(IF(الدرجات[[#This Row],[المتوسط]]<>\"\",HLOOKUP(الدرجات[[#This Row],[المتوسط]]*TotalPoints,GradeTable,4),\"\"),0)","v":""}]
[]
[null,"ملخص الصف الدراسي",null,"المتوسط",null,"الدرجة بالأحرف","المعدل التراكمي","","","","","","","","","","",""]
[null," المتوسط",null,{"$f":"IFERROR(AVERAGE(الدرجات[[#All],[المتوسط]]),0)","v":{"v":0.9550000000000001,"d":"95.5%"}},null,{"$f":"IFERROR(HLOOKUP(D22*TotalPoints,GradeTable,3),\"\")","v":"أ"},{"$f":"IFERROR(AVERAGE(الدرجات[[#All],[المعدل التراكمي]]),0)","v":{"v":3.835,"d":"3.84"}},"","","","","","","","","","","","","","","","",""]
[null," أعلى درجة",null,{"$f":"IFERROR(MAX(الدرجات[[#All],[المتوسط]]),0)","v":{"v":1,"d":"100.0%"}},null,{"$f":"IFERROR(HLOOKUP(D23*TotalPoints,GradeTable,3),\"\")","v":"A+"},{"$f":"IFERROR(MAX(الدرجات[[#All],[المعدل التراكمي]]),0)","v":{"v":4,"d":"4.00"}},"","","","","","","","","","","","","","","","",""]
[null," أقل درجة",null,{"$f":"IFERROR(MIN(الدرجات[[#All],[المتوسط]]),0)","v":{"v":0.91,"d":"91.0%"}},null,{"$f":"IFERROR(HLOOKUP(D24*TotalPoints,GradeTable,3),\"\")","v":"A-"},{"$f":"IFERROR(MIN(الدرجات[[#All],[المعدل التراكمي]]),0)","v":3.67},"","","","","","","","","","","","","","","","",""]